Cogmind - Beta 9.6 @@@ ROGUE MODE // 2020.07.12 @ 23:39:45 Player: Bacon Result: Destroyed by G-34 Mercenary with Small Laser Performance ------------- Evolutions (0) 0 Regions Visited (2) 400 Robots Destroyed (6) 30 Value Destroyed (63) 63 Prototype IDs (0) 0 Alien Tech Used (0) 0 Bonus (0) 0 TOTAL SCORE: 493 Bonus ------- None Cogmind --------- Core Integrity 0/250 Matter 276/300 Energy 100/100 System Corruption 0% Temperature Cool (6) Movement Core (150) Ox2 Location -10/Mines Parts ------- > --- POWER (1) -------- (None) > --- PROPULSION (2) --- (None) > --- UTILITY (2) ------ Medium Storage Unit Seismic Analyzer > --- WEAPON (2) ------- (None) > --- INVENTORY (8) ---- Light Ion Engine Medium Matter Pod (0) Medium Laser Peak State ------------ > --- POWER ------------ Backup Power III > --- PROPULSION ------- Wheel Wheel > --- UTILITY ---------- Medium Storage Unit Seismic Analyzer > --- WEAPON ----------- Medium Laser Light Assault Rifle > --- INVENTORY -------- Light Ion Engine Medium Matter Pod Medium Laser [Rating: 9] Favorites ----------- Power Ion Engine Engine Ion Engine Propulsion Wheel Wheel Wheel Utility Seismic Analyzer Device Improved Terrain Scanner Storage Medium Storage Unit Processor Seismic Analyzer Weapon Light Assault Rifle Energy Gun Medium Laser Ballistic Gun Light Assault Rifle Build | -11 -10 -10 ------- Run | Scr Mat Min Slots Evolved . | . . . Power . | . . . Propulsion . | . . . Utility . | . . . Weapon . | . . . Parts Attached 15 | 12 3 . Power 4 | 4 . . Engine 4 | 4 . . Core . | . . . Reactor . | . . . Propulsion 3 | 3 . . Treads . | . . . Leg . | . . . Wheel 3 | 3 . . Hover . | . . . Flight . | . . . Utility 6 | 3 3 . Device 2 | 2 . . Storage 3 | . 3 . Processor 1 | 1 . . Hackware . | . . . Protection . | . . . Artifact . | . . . Weapon 2 | 2 . . Energy Gun 1 | 1 . . Energy Cannon . | . . . Ballistic Gun 1 | 1 . . Ballistic Cannon . | . . . Launcher . | . . . Special Weapon . | . . . Impact Weapon . | . . . Slashing Weapon . | . . . Piercing Weapon . | . . . Special Melee Weapon . | . . . Unidentified Prototypes . | . . . Parts Lost 5 | . 2 3 Power 1 | . . 1 Propulsion 2 | . 1 1 Utility . | . . . Weapon 2 | . 1 1 Highest Loss Streak 5 | . 2 5 Average Slot Usage (%) 87 | . 97 42 Engine 12 | . 14 4 Wheel 22 | . 28 . Device 1 | . 2 . Storage 12 | . 11 14 Processor 14 | . 14 14 Energy Gun 9 | . 11 . Ballistic Gun 13 | . 14 9 Naked Turns . | . . . Heaviest Build 24 | 10 24 8 Greatest Support 20 | 20 20 3 Greatest Overweight (x) 2 | . 1 2 Average Overweight (x) . | . . 2 Largest Inventory Capacity 10 | 4 10 8 Average Capacity 5 | 4 7 8 Most Carried 4 | 4 4 3 Average Carried 2 | 2 3 3 Final Capacity 8 | 4 8 8 Final Carried 3 | 3 3 3 Class Distribution -------------------- 61% | Scavenger-Mutant 38% | Mutant Dominant Class ---------------- Mutant | -10/Materials Mutant | -10/Mines Resources | -11 -10 -10 ----------- Run | Scr Mat Min Matter Collected 336 | 336 . . Remotely . | . . . Salvage Created 133 | 133 . . Parts 15 | 15 . . Haulers Intercepted . | . . . Recyclers Shooed . | . . . Parts Field Recycled . | . . . Retrieved Matter . | . . . Parts Self-Destructed . | . . . Prevented . | . . . Kills | -11 -10 -10 ------- Run | Scr Mat Min Combat Hostiles Destroyed 1 | 1 . . Guns 1 | 1 . . Classes Destroyed 3 | 3 . . Worker 1 | 1 . . Tunneler 4 | 4 . . Grunt 1 | 1 . . Best Kill Streak 2 | 2 . . Combat Bots Only 1 | 1 . . Max Kills in Single Turn 1 | 1 . . Gunslinging . | . . . Exploded . | . . . Melee . | . . . Uniques/NPCs Destroyed . | . . . Combat | -11 -10 -10 -------- Run | Scr Mat Min Damage Taken 591 | 64 264 263 Core 251 | 33 89 129 Absorbed by Shields . | . . . Core Remaining (%) 86 | 86 . . Volleys Fired 35 | 16 10 9 Largest 2 | 2 2 1 Hottest 70 | 70 70 20 Shots Fired 45 | 21 15 9 Gun 45 | 21 15 9 Cannon . | . . . Launcher . | . . . Special . | . . . Kinetic 35 | 16 10 9 Thermal 10 | 5 5 . Explosive . | . . . Electromagnetic . | . . . Robot Hit Streak 11 | 4 11 6 Robot Miss Streak 2 | 2 1 2 Penetration Max . | . . . Secondary Targets . | . . . Shots Hit Robots 30 | 11 12 7 Core Hits 9 | 8 . 1 Critical Hits 1 | 1 . . Critical Kills 1 | 1 . . Critical Parts Destroyed . | . . . Melee Attacks . | . . . Impact . | . . . Slashing . | . . . Piercing . | . . . Sneak Attacks . | . . . Combat Hostiles . | . . . Follow-up Attacks . | . . . Damage Inflicted 296 | 129 106 61 Guns 296 | 129 106 61 Cannons . | . . . Explosions . | . . . Melee . | . . . Ramming . | . . . Kinetic 195 | 79 55 61 Thermal 101 | 50 51 . Explosive . | . . . Electromagnetic . | . . . Impact . | . . . Slashing . | . . . Piercing . | . . . Highest Corruption . | . . . Average Corruption . | . . . Corruption Purged . | . . . Overload Shots . | . . . Overflow Damage . | . . . Projectiles . | . . . Explosions . | . . . Melee . | . . . Knockbacks . | . . . Impact . | . . . Kinetic . | . . . Secondary . | . . . Self-Inflicted Damage . | . . . Shots . | . . . Rammed . | . . . Targets Rammed . | . . . Kicked . | . . . Crushed . | . . . Highest Temperature 112 | 40 112 14 Average Temperature 39 | 15 59 10 Received Heat Transfer 336 | 36 144 156 Siege Activations . | . . . Robots Corrupted . | . . . Combat Hostiles . | . . . Parts Fried . | . . . Impact Corruptions . | . . . Robots Melted . | . . . Combat Hostiles . | . . . Parts Melted 1 | 1 . . Heat Transferred 296 | 148 148 . Parts Sabotaged . | . . . Parts Stolen . | . . . Parts Stripped . | . . . Power Chain Reactions . | . . . Missiles Intercepted . | . . . Alert | -11 -10 -10 ------- Run | Scr Mat Min Peak Influence 69 | 45 69 18 Average Influence 26 | 23 38 3 Maximum Alert Level . | . . . Low Security (%) 100 | 100 100 100 Level 1 . | . . . Level 2 . | . . . Level 3 . | . . . Level 4 . | . . . Level 5 . | . . . High Security . | . . . Max Security . | . . . Squads Dispatched 3 | . 3 . Investigation 2 | . 2 . Extermination . | . . . Reinforcement 1 | . 1 . Assault . | . . . Garrison . | . . . Intercept . | . . . Construction Impeded . | . . . Haulers Reinforced . | . . . Stealth | -11 -10 -10 --------- Run | Scr Mat Min Distress Signals 2 | . 2 . Communications Jammed . | . . . Distress Signals . | . . . Times Spotted 13 | 1 10 2 Peak Tracking Total 10 | 1 10 2 Tactical Retreats . | . . . Traps | -11 -10 -10 ------- Run | Scr Mat Min Traps Triggered 1 | . 1 . Indirectly . | . . . Trap Hack Attempts . | . . . Triggered . | . . . Disarmed . | . . . Reprogrammed . | . . . Reused . | . . . Traps Extracted . | . . . Installed . | . . . Triggered . | . . . Machines | -11 -10 -10 ---------- Run | Scr Mat Min Machines Disabled . | . . . Max in Single Turn . | . . . Machines Sabotaged . | . . . Garrisons Compromised . | . . . Overloaded Fab Kills . | . . . Fab Network Shutdowns . | . . . Hacking | -11 -10 -10 --------- Run | Scr Mat Min Machines Accessed 3 | . 3 . Terminals 1 | . 1 . Fabricators . | . . . Repair Stations 1 | . 1 . Recycling Units 1 | . 1 . Scanalyzers . | . . . Garrison Access . | . . . Total Hacks 9 | . 9 . Successful 7 | . 7 . Failed 2 | . 2 . Catastrophic . | . . . Database Lockouts . | . . . Manual . | . . . Terminals 3 | . 3 . Fabricators . | . . . Repair Stations 3 | . 3 . Recycling Units 3 | . 3 . Scanalyzers . | . . . Garrison Access . | . . . Terminal Hacks 1 | . 1 . Record 1 | . 1 . Fabricator Hacks . | . . . Repair Station Hacks 3 | . 3 . Scan Component 1 | . 1 . Repair 1 | . 1 . Refit 1 | . 1 . Recycling Unit Hacks 3 | . 3 . Recycle Component 1 | . 1 . Process 2 | . 2 . Scanalyzer . | . . . Garrison Access Hacks . | . . . Unauthorized Hacks . | . . . Terminals . | . . . Fabricators . | . . . Repair Stations . | . . . Recycling Units . | . . . Scanalyzers . | . . . Garrison Access . | . . . Data Cores Recovered . | . . . Used . | . . . Hacking Detections 3 | . 3 . Full Trace Events 2 | . 2 . Feedback Events . | . . . Feedback Blocked . | . . . Robot Schematics Acquired . | . . . Robots Built . | . . . Matter . | . . . Time . | . . . Total Robot Build Rating . | . . . Part Schematics Acquired . | . . . Parts Built . | . . . Matter . | . . . Time . | . . . Total Part Build Rating . | . . . Parts Repaired 1 | . 1 . Time 13 | . 13 . Parts Recycled 1 | . 1 . Recycled Matter 17 | . 17 . Retrieved Matter . | . . . Retrieved Components . | . . . Parts Scanalyzed . | . . . Part Schematics Acquired . | . . . Parts Damaged . | . . . Bothacking | -11 -10 -10 ------------ Run | Scr Mat Min Used RIF Installer . | . . . Robots Hacked . | . . . Non-combat . | . . . Combat . | . . . Robot Hacks Applied . | . . . Relay Couplers Released . | . . . Robots Rewired . | . . . Allies Hacked . | . . . Hacks Repelled . | . . . Allies | -11 -10 -10 -------- Run | Scr Mat Min Total Allies . | . . . Largest Group . | . . . Highest-Rated Group . | . . . Highest-Rated Ally . | . . . Total Orders . | . . . Ally Attacks . | . . . Total Damage . | . . . Kills . | . . . Allies Corrupted . | . . . Allies Melted . | . . . Intel | -11 -10 -10 ------- Run | Scr Mat Min Robot Analysis Total . | . . . Derelict Logs Recovered . | . . . Drone Launches . | . . . Drone Recoveries . | . . . Exploration | -11 -10 -10 ------------- Run | Scr Mat Min Turns Passed 392 | 233 131 28 Spaces Moved 353 | 223 122 8 Core 43 | 35 . 8 Treads . | . . . Legs . | . . . Wheels 310 | 188 122 . Hover . | . . . Flight . | . . . Fastest Speed 50 | 50 80 150 Average Speed 78 | 75 80 150 Slowest Speed 150 | 80 90 150 Overloaded Moves . | . . . Propulsion Burnouts . | . . . Robots Hopped . | . . . Cave-ins Triggered . | . . . Exploration Rate (%) 10 | 8 18 4 Regions Visited 2 Branch Regions 1 Pre-discovered Areas . | . . . Known Exits Taken . | . . . Unknown Exits Taken 2 | 1 1 . Scrap Searched . | . . . Spaces Dug . | . . . Terrain Destroyed . | . . . Melee . | . . . Projectile . | . . . AOE . | . . . Actions | -11 -10 -10 --------- Run | Scr Mat Min Total 431 | 271 143 17 Wait 4 | 4 . . Move 351 | 222 121 8 Hop . | . . . Pick Up 16 | 12 4 . Fast Attach 1 | 1 . . Attach 12 | 9 3 . Detach 4 | 2 2 . Swap 2 | 2 . . Drop 6 | 3 3 . Fire 35 | 16 10 9 Melee . | . . . Ram . | . . . Kick . | . . . Crush . | . . . Escape Stasis . | . . . Rewire . | . . . Trap . | . . . Miscellaneous . | . . . Route ------- -11/Scrapyard -10/Materials -10/Mines History --------- Turn | Location | Event 2 | -11/Scrapyard | Met Revision 17 70 | -11/Scrapyard | Discovered new exit (range 8) 234 | -11/Scrapyard | Entered Materials 300 | -10/Materials | Discovered new exit (range 7) 341 | -10/Materials | Repaired Ion Engine 365 | -10/Materials | Entered Mines 366 | -10/Mines | Assembled infested the area 368 | -10/Mines | Core integrity fell below 50% 388 | -10/Mines | Core integrity fell below 20% 393 | -10/Mines | Destroyed by G-34 Mercenary with Small Laser Last Messages --------------- >>Refit Scanning configuration... Attaching: Backup Power III x1 Repair station completes Ion Engine repairs. [Achievement: Part-time Mechanic] Med. Laser destroyed. Destroyed Sml. Laser. [Achievement: Crack Shot] K-01 Serf collects debris. Wheel destroyed. K-01 Serf collects debris. LOCATION=UNKNOWN GOAL=ESCAPE Something is scanning the area. ALERT: Infestation in the mines, dispatching Demolisher response squad. Wheel destroyed. Backup Power III destroyed. Lgt. Assault Rifle destroyed. [Achievement: First Step to Greatness] Map ----- +----------------------------------------------------+ | | | | | | | ???????????????????????????????????????????? | | ???????????????????????????????????????????? | | ???????????????????????????????????????????? | | ???????????????????????????????????????????? | | ???????????????????????????????????????????? | | ???????????????????????????????????????????? | | ???????????????????????????????????????????? | | ???????????????????????????????????????????? | | ???????????????????????????????????????????? | | ???????????????????????????????????????????? | | ???????????????????????????????????????????? | | ???????????????????????????????????????????? | | ???????????????????????????????????????????? | | ???????????????????????????????????????????? | | ???????????????????????????????????????????? | | ???????????????????????????????????????????? | | ???????????????#???????????????????????????? | | ???????????????# ??????????????????????????? | | ???????????????# ??????????????????????????? | | ??????????????## ######????????????????????? | | ??????????????# #????????????????????? | | ??????????????#""" #????????????????????? | | ??????????????#""" @ #????????????????????? | | ??????????????#""" #????????????????????? | | ??????????????# #????????????????????? | | ??????????????# #????????????????????? | | ??????????????# #????????????????????? | | ??????????????# #????????????????????? | | ??????????????# g #????????????????????? | | ??????????????# g #????????????????????? | | ??????????????#########????????????????????? | | ???????????????????????????????????????????? | | ???????????????????????????????????????????? | | ???????????????????????????????????????????? | | ???????????????????????????????????????????? | | ???????????????????????????????????????????? | | ???????????????????????????????????????????? | | ???????????????????????????????????????????? | | ???????????????????????????????????????????? | | ???????????????????????????????????????????? | | ???????????????????????????????????????????? | | ???????????????????????????????????????????? | | ???????????????????????????????????????????? | | ???????????????????????????????????????????? | | ???????????????????????????????????????????? | | ???????????????????????????????????????????? | | ???????????????????????????????????????????? | +----------------------------------------------------+ Best States ------------- Heat Dissipation 35 Energy Generation 11 Energy Capacity 250 Matter Stores 300 Matter Capacity 300 Sight Range 16 Terrain Scan Range 16 Terrain Scan Density 60 Evasion (%) 50 Item Schematics ----------------- None Robot Schematics ------------------ None Fabricated ------------ Nothing Alien Tech Used ----------------- None Achievements -------------- Crack Shot First Step to Greatness One Hack Too Far Part-time Mechanic Uninvited Guest Challenges ------------ None Game ------ Seed GhostFieldSink Manual? 0 Play Time 00:24:57 Cumulative 0.8 hours Start 2020.07.12 @ 23:04:13 End 2020.07.12 @ 23:39:45 Sessions 1 Manual Loads 0 Difficulty Rogue Special Mode None Game No. 1 Rogue 1 Adventurer 0 Explorer 0 Win Type - Total 0 Types 0/0/0/0/0/0/0 Lore% 0 Gallery% 1 Achievement% 1 Wizard Run 0 Options --------- ASCII 0 Keyboard 0 Movement Mouse Keybinds 0 Fullscreen 1 Font 18/SmallcapsGlow Map View 76x50 Tactical HUD 0 Map Filters NONE Filters NONE Steam 1 RUN: 45fa5831-f61f-43ab-8405-c544086ca0ac